lending/lending_fUSD_20240824
["ID","MTS","AMOUNT","RATE_DAILY","PERIOD"]
[335787468,1724491850281,-174.12,0.00010959,2]
[335787469,1724491850290,-159.967424,0.00010973,2]
[335787470,1724491850300,-159.967424,0.00010973,2]
[335787471,1724491850309,-199.95928,0.00010973,2]
[335787472,1724491850318,-158.0,0.00010973,2]
[335787473,1724491850327,-179.34347823,0.00010973,2]
[335787474,1724491850336,-150.968442,0.00010973,2]
[335787475,1724491850345,-151.9690528,0.00010973,2]
[335787476,1724491850354,-154.968442,0.00010973,2]
[335787477,1724491850363,-500.0,0.00010973,2]
[335787478,1724491850373,-1111.53,0.00010985,2]
[335787479,1724491850382,-500.0,0.00010985,2]
[335787480,1724491850392,-500.0,0.00010985,2]
[335787481,1724491850401,-500.0,0.00010985,2]
[335787482,1724491850410,-500.0,0.00010985,2]
[335787483,1724491850420,-500.0,0.00010985,2]
[335787484,1724491850429,-500.0,0.00010985,2]
[335787485,1724491850438,-603.04,0.00010985,2]
[335787486,1724491850447,-500.0,0.00010985,2]
[335787487,1724491850457,-167.82577936,0.00010985,2]
[335787488,1724491850466,-500.0,0.00010986,2]
[335787489,1724491850475,-500.0,0.00010986,2]
[335787490,1724491850485,-70454.25981293,0.0001099,2]
[335787491,1724491850495,-519.62094088,0.00010997,2]
[335787492,1724491850504,-500.0,0.00010997,2]
[335787493,1724491850513,-853.29,0.00010997,2]
[335787494,1724491850523,-500.0,0.00010997,2]
[335787495,1724491850532,-500.0,0.00010997,2]
[335787496,1724491850541,-500.0,0.00010997,2]
[335787497,1724491850550,-500.0,0.00010997,2]
[335787498,1724491850560,-500.0,0.00010997,2]
[335787499,1724491850569,-612.19,0.00010997,2]
[335787500,1724491850578,-500.0,0.00010997,2]
[335787501,1724491850587,-500.0,0.00010997,2]
[335787502,1724491850597,-156.56602708,0.00010997,2]
[335787503,1724491850607,-639.27,0.00010997,2]
[335787504,1724491850620,-500.0,0.00010997,2]
[335787505,1724491850629,-614.82,0.00010997,2]
[335787506,1724491850638,-500.0,0.00010997,2]
[335787507,1724491850648,-531.78249317,0.00010997,2]
[335787508,1724491850657,-512.78473057,0.00010997,2]
[335787509,1724491850666,-500.0,0.00010997,2]
[335787510,1724491850675,-322.5676781,0.00010998,2]
[335787511,1724491850684,-500.0,0.00010998,2]
[335787512,1724491850693,-500.0,0.00010998,2]
[335787513,1724491850702,-853.29,0.00010998,2]
[335787514,1724491850712,-853.29,0.00010998,2]
[335787515,1724491850721,-500.0,0.00010998,2]
[335787516,1724491850730,-500.0,0.00010998,2]
[335787517,1724491850739,-500.0,0.00010998,2]
[335787518,1724491850749,-500.0,0.00010998,2]
[335787519,1724491850758,-500.0,0.00010998,2]
[335787520,1724491850768,-1111.53,0.00010998,2]
[335787521,1724491850777,-500.0,0.00010998,2]
[335787522,1724491850786,-500.0,0.00010998,2]
[335787523,1724491850907,-819.26,0.00010998,2]
[335787524,1724491850917,-612.19,0.00010998,2]
[335787525,1724491850927,-612.19,0.00010998,2]
[335787526,1724491850936,-500.0,0.00010998,2]
[335787527,1724491850945,-500.0,0.00010998,2]
[335787528,1724491850955,-513.46,0.00010998,2]
[335787529,1724491850964,-500.0,0.00010998,2]
[335787530,1724491850973,-757.28,0.00010998,2]
[335787531,1724491850983,-786.18,0.00010998,2]
[335787532,1724491850992,-500.0,0.00010998,2]
[335787533,1724491851001,-601.05,0.00010998,2]
[335787534,1724491851011,-601.05,0.00010998,2]
[335787535,1724491851021,-500.0,0.00010998,2]
[335787536,1724491851037,-500.0,0.00010998,2]
[335787537,1724491851047,-894.92,0.00010998,2]
[335787538,1724491851057,-894.92,0.00010998,2]
[335787539,1724491851066,-500.0,0.00010998,2]
[335787540,1724491851075,-500.0,0.00010998,2]
[335787541,1724491851084,-500.0,0.00010998,2]
[335787542,1724491851093,-500.0,0.00010998,2]
[335787543,1724491851102,-500.0,0.00010998,2]
[335787544,1724491851111,-500.0,0.00010998,2]
[335787545,1724491851120,-500.0,0.00010998,2]
[335787546,1724491851130,-500.0,0.00010998,2]
[335787547,1724491851139,-500.0,0.00010998,2]
[335787548,1724491851148,-500.0,0.00010998,2]
[335787549,1724491851157,-257.04,0.00010998,2]
[335787550,1724491851167,-500.0,0.00010998,2]
[335787551,1724491851176,-603.04,0.00010998,2]
[335787552,1724491851185,-500.0,0.00010998,2]
[335787553,1724491851194,-500.0,0.00010998,2]
[335787554,1724491851204,-500.0,0.00010998,2]
[335787555,1724491851213,-514.83,0.00010998,2]
[335787556,1724491851223,-514.83,0.00010998,2]
[335787557,1724491851232,-500.0,0.00010998,2]
[335787558,1724491851241,-500.0,0.00010998,2]
[335787559,1724491851250,-242.18939926,0.00010999,2]
[335787560,1724491851259,-500.0,0.00010999,2]
[335787561,1724491851268,-527.29333872,0.00010999,2]
[335787562,1724491851278,-505.26788589,0.00010999,2]
[335787563,1724491851288,-500.0,0.00010999,2]
[335787564,1724491851297,-500.0,0.00010999,2]
[335787565,1724491851306,-500.0,0.00010999,2]
[335787566,1724491851315,-500.0,0.00010999,2]
[335787567,1724491851324,-500.0,0.00010999,2]
[335787568,1724491851333,-500.0,0.00010999,2]
[335787569,1724491851343,-500.0,0.00010999,2]
[335787570,1724491851353,-500.0,0.00010999,2]
[335787571,1724491851362,-500.0,0.00010999,2]
[335787572,1724491851370,-500.0,0.00010999,2]
[335787573,1724491851380,-535.03,0.00010999,2]
[335787574,1724491851389,-535.03,0.00010999,2]
[335787575,1724491851398,-535.03,0.00010999,2]
[335787576,1724491851407,-535.03,0.00010999,2]
[335787577,1724491851416,-535.03,0.00010999,2]
[335787578,1724491851427,-500.0,0.00010999,2]
[335787579,1724491851437,-500.0,0.00010999,2]
[335787580,1724491851448,-500.0,0.00010999,2]
[335787581,1724491851459,-350.81124157,0.00010999,2]
[335787582,1724491851469,-594.64,0.00010999,2]
[335787583,1724491851480,-500.0,0.00010999,2]
[335787584,1724491851490,-500.0,0.00010999,2]
[335787585,1724491851502,-500.0,0.00010999,2]
[335787586,1724491851512,-344.83240398,0.00010999,2]
[335787587,1724491851523,-500.0,0.00010999,2]
[335787588,1724491851532,-527.06028061,0.00010999,2]
[335787589,1724491851541,-500.0,0.00010999,2]
[335787590,1724491851550,-500.0,0.00010999,2]
[335787591,1724491851560,-500.0,0.00010999,2]
[335787592,1724491851569,-500.0,0.00010999,2]
[335787593,1724491851579,-500.0,0.00010999,2]
[335787594,1724491851590,-414.50047564,0.00010999,2]
[335787595,1724491851599,-500.0,0.00010999,2]
[335787596,1724491851610,-500.0,0.00010999,2]
[335787597,1724491851624,-500.0,0.00010999,2]
[335787598,1724491851633,-500.0,0.00010999,2]
[335787599,1724491851643,-500.0,0.00010999,2]
[335787600,1724491851652,-500.0,0.00010999,2]
[335787601,1724491851663,-500.0,0.00010999,2]
[335787602,1724491851673,-500.0,0.00010999,2]
[335787603,1724491851682,-500.0,0.00010999,2]
[335787604,1724491851692,-500.0,0.00010999,2]
[335787605,1724491851702,-500.0,0.00010999,2]
[335787606,1724491851711,-500.0,0.00010999,2]
[335787607,1724491851720,-500.0,0.00010999,2]
[335787608,1724491851730,-500.0,0.00010999,2]
[335787609,1724491851739,-500.0,0.00010999,2]
[335787610,1724491851749,-500.0,0.00010999,2]
[335787611,1724491851758,-500.0,0.00010999,2]
[335787612,1724491851768,-500.0,0.00010999,2]
[335787613,1724491851778,-500.0,0.00010999,2]
[335787614,1724491851787,-500.0,0.00010999,2]
[335787615,1724491851796,-500.0,0.00010999,2]
[335787616,1724491851806,-500.0,0.00010999,2]
[335787617,1724491851817,-500.0,0.00010999,2]
[335787618,1724491851826,-484.11869149,0.00010999,2]
[335787619,1724491851836,-500.0,0.00010999,2]
[335787620,1724491851846,-500.0,0.00010999,2]
[335787621,1724491851856,-500.0,0.00010999,2]
[335787622,1724491851866,-500.0,0.00010999,2]
[335787623,1724491851876,-561.63678158,0.00010999,2]
[335787624,1724491851887,-500.0,0.00010999,2]
[335787625,1724491851897,-500.0,0.00010999,2]
[335787626,1724491851906,-500.0,0.00010999,2]
[335787627,1724491851915,-500.0,0.00010999,2]
[335787628,1724491851925,-562.37574584,0.00010999,2]
[335787629,1724491851934,-509.8170672,0.00010999,2]
[335787630,1724491851944,-500.0,0.00010999,2]
[335787631,1724491851953,-500.0,0.00010999,2]
[335787632,1724491851962,-500.0,0.00010999,2]
[335787633,1724491851972,-481.86546211,0.00010999,2]
[335787634,1724491851981,-500.0,0.00010999,2]
[335787635,1724491851990,-566.10011075,0.00010999,2]
[335787636,1724491852000,-518.08951613,0.00010999,2]
[335787637,1724491852010,-525.05176186,0.00010999,2]
[335787638,1724491852019,-500.0,0.00010999,2]
[335787639,1724491852029,-524.6485397,0.00010999,2]
[335787640,1724491852039,-500.0,0.00010999,2]
[335787641,1724491852048,-533.58120163,0.00010999,2]
[335787642,1724491852058,-500.0,0.00010999,2]
[335787643,1724491852068,-525.43853859,0.00010999,2]
[335787644,1724491852078,-500.0,0.00010999,2]
[335787645,1724491852088,-500.0,0.00010999,2]
[335787646,1724491852098,-500.0,0.00010999,2]
[335787647,1724491852107,-500.0,0.00010999,2]
[335787648,1724491852116,-500.0,0.00010999,2]
[335787649,1724491852126,-531.83597113,0.00010999,2]
[335787650,1724491852135,-298.02709553,0.00010999,2]
[335787651,1724491852145,-500.0,0.00010999,2]
[335787652,1724491852154,-506.77489429,0.00010999,2]
[335787653,1724491852163,-500.0,0.00010999,2]
[335787654,1724491852172,-544.31734626,0.00010999,2]
[335787655,1724491852182,-526.44193565,0.00010999,2]
[335787656,1724491852191,-507.68695075,0.00010999,2]
[335787657,1724491852201,-508.88137241,0.00010999,2]
[335787658,1724491852210,-500.0,0.00010999,2]
[335787659,1724491852219,-522.95382884,0.00010999,2]
[335787660,1724491852228,-500.0,0.00010999,2]
[335787661,1724491852237,-512.4920921,0.00010999,2]
[335787662,1724491852246,-500.0,0.00010999,2]
[335787663,1724491852255,-515.49206039,0.00010999,2]
[335787664,1724491852264,-519.82133066,0.00010999,2]
[335787665,1724491852274,-500.0,0.00010999,2]
[335787666,1724491852283,-519.87832073,0.00010999,2]
[335787667,1724491852292,-500.0,0.00010999,2]
[335787668,1724491852301,-566.69421567,0.00010999,2]
[335787669,1724491852311,-150.0,0.00010999,2]
[335787670,1724491852320,-337.66883333,0.00010999,2]
[335787671,1724491852329,-500.0,0.00010999,2]
[335787672,1724491852338,-520.60647701,0.00010999,2]
[335787673,1724491852348,-500.0,0.00010999,2]
[335787674,1724491852356,-500.0,0.00010999,2]
[335787675,1724491852365,-500.0,0.00010999,2]
[335787676,1724491852374,-500.0,0.00010999,2]
[335787677,1724491852384,-542.57134876,0.00010999,2]
[335787678,1724491852394,-500.0,0.00010999,2]
[335787679,1724491852403,-500.0,0.00010999,2]
[335787680,1724491852412,-500.0,0.00010999,2]
[335787681,1724491852421,-569.71,0.00010999,2]
[335787682,1724491852430,-500.0,0.00010999,2]
[335787683,1724491852439,-500.0,0.00010999,2]
[335787684,1724491852449,-518.37778538,0.00010999,2]
[335787685,1724491852458,-514.17361394,0.00010999,2]
[335787686,1724491852467,-516.92615872,0.00010999,2]
[335787687,1724491852476,-505.58856497,0.00010999,2]
[335787688,1724491852485,-500.0,0.00010999,2]
[335787689,1724491852495,-500.0,0.00010999,2]
[335787690,1724491852504,-500.0,0.00010999,2]
[335787691,1724491852513,-500.0,0.00010999,2]
[335787692,1724491852524,-551.64065255,0.00010999,2]
[335787693,1724491852533,-521.43118258,0.00010999,2]
[335787694,1724491852542,-500.0,0.00010999,2]
[335787695,1724491852551,-507.24246433,0.00010999,2]
[335787696,1724491852560,-500.0,0.00010999,2]
[335787697,1724491852569,-500.0,0.00010999,2]
[335787698,1724491852578,-500.0,0.00010999,2]
[335787699,1724491852587,-504.75,0.00010999,2]
[335787700,1724491852596,-500.0,0.00010999,2]
[335787701,1724491852605,-624.32871574,0.00010999,2]
[335787702,1724491852619,-500.0,0.00010999,2]
[335787703,1724491852628,-520.50297098,0.00010999,2]
[335787704,1724491852637,-513.33318541,0.00010999,2]
[335787705,1724491852646,-500.0,0.00010999,2]
[335787706,1724491852655,-500.0,0.00010999,2]
[335787707,1724491852665,-520.8458619,0.00010999,2]
[335787708,1724491852674,-500.0,0.00010999,2]
[335787709,1724491852683,-508.27312025,0.00010999,2]
[335787710,1724491852692,-500.0,0.00010999,2]
[335787711,1724491852701,-500.0,0.00010999,2]
[335787712,1724491852710,-500.0,0.00010999,2]
[335787713,1724491852720,-518.83160319,0.00010999,2]
[335787714,1724491852729,-500.0,0.00010999,2]
[335787715,1724491852738,-500.0,0.00010999,2]
[335787716,1724491852747,-500.0,0.00010999,2]
[335787717,1724491852756,-500.0,0.00010999,2]
[335787718,1724491852765,-500.0,0.00010999,2]
[335787719,1724491852775,-500.0,0.00010999,2]
[335787720,1724491852784,-500.0,0.00010999,2]
[335787721,1724491852793,-504.37170426,0.00010999,2]
[335787722,1724491852802,-541.23341766,0.00010999,2]
[335787723,1724491852811,-520.63497553,0.00010999,2]
[335787724,1724491852820,-500.0,0.00010999,2]
[335787725,1724491852829,-500.0,0.00010999,2]
[335787726,1724491852837,-449.83776468,0.00010999,2]
[335787727,1724491852847,-500.0,0.00010999,2]
[335787728,1724491852856,-500.0,0.00010999,2]
[335787729,1724491852866,-500.0,0.00010999,2]
[335787730,1724491852875,-500.0,0.00010999,2]
[335787731,1724491852884,-500.0,0.00010999,2]
[335787732,1724491852894,-500.0,0.00010999,2]
[335787733,1724491852903,-500.0,0.00010999,2]
[335787734,1724491852912,-500.0,0.00010999,2]
[335787735,1724491852922,-515.13626123,0.00010999,2]
[335787736,1724491852931,-323.31814663,0.00010999,2]
[335787737,1724491852941,-500.0,0.00010999,2]
[335787738,1724491852952,-500.0,0.00010999,2]
[335787739,1724491852963,-500.0,0.00010999,2]
[335787740,1724491852972,-359.93248891,0.00010999,2]
[335787741,1724491852983,-500.0,0.00010999,2]
[335787742,1724491852992,-519.34849605,0.00010999,2]
[335787743,1724491853105,-504.48201796,0.00010999,2]
[335787744,1724491853115,-500.0,0.00010999,2]
[335787745,1724491853125,-500.0,0.00010999,2]
[335787746,1724491853135,-500.0,0.00010999,2]
[335787747,1724491853144,-500.0,0.00010999,2]
[335787748,1724491853154,-500.0,0.00010999,2]
[335787749,1724491853163,-509.69778525,0.00010999,2]
[335787750,1724491853172,-508.93129664,0.00010999,2]
[335787751,1724491853181,-500.0,0.00010999,2]
[335787752,1724491853192,-500.0,0.00010999,2]
[335787753,1724491853201,-500.0,0.00010999,2]
[335787754,1724491853211,-500.0,0.00010999,2]
[335787755,1724491853220,-500.0,0.00010999,2]
[335787756,1724491853230,-500.0,0.00010999,2]
[335787757,1724491853239,-500.0,0.00010999,2]
[335787758,1724491853248,-500.0,0.00010999,2]
[335787759,1724491853258,-506.46931372,0.00010999,2]
[335787760,1724491853268,-567.18102437,0.00010999,2]
[335787761,1724491853278,-500.0,0.00010999,2]
[335787762,1724491853290,-500.0,0.00010999,2]
[335787763,1724491853299,-514.82539953,0.00010999,2]
[335787764,1724491853308,-504.19030652,0.00010999,2]
[335787765,1724491853318,-500.0,0.00010999,2]
[335787766,1724491853327,-500.0,0.00010999,2]
[335787767,1724491853336,-500.0,0.00010999,2]
[335787768,1724491853346,-262.00698942,0.00010999,2]
[335787769,1724491853355,-500.0,0.00010999,2]
[335787770,1724491853364,-500.0,0.00010999,2]
[335787771,1724491853373,-500.0,0.00010999,2]
[335787772,1724491853382,-500.0,0.00010999,2]
[335787773,1724491853391,-518.35032413,0.00010999,2]
[335787774,1724491853400,-510.04325688,0.00010999,2]
[335787775,1724491853409,-500.0,0.00010999,2]
[335787776,1724491853418,-500.0,0.00010999,2]
[335787777,1724491853428,-305.3235799,0.00010999,2]
[335787778,1724491853437,-547.25590422,0.00010999,2]
[335787779,1724491853446,-533.34308336,0.00010999,2]
[335787780,1724491853455,-500.0,0.00010999,2]
[335787781,1724491853465,-500.0,0.00010999,2]
[335787782,1724491853474,-500.0,0.00010999,2]
[335787783,1724491853483,-518.74185644,0.00010999,2]
[335787784,1724491853492,-500.0,0.00010999,2]
[335787785,1724491853501,-511.72221081,0.00010999,2]
[335787786,1724491853510,-500.0,0.00010999,2]
[335787787,1724491853522,-500.0,0.00010999,2]
[335787788,1724491853531,-536.74497378,0.00010999,2]
[335787789,1724491853540,-500.0,0.00010999,2]
[335787790,1724491853549,-500.0,0.00010999,2]
[335787791,1724491853558,-500.0,0.00010999,2]
[335787792,1724491853567,-500.0,0.00010999,2]
[335787793,1724491853578,-614.48,0.00010999,2]
[335787794,1724491853587,-498.82715947,0.00010999,2]
[335787795,1724491853596,-506.70168606,0.00010999,2]
[335787796,1724491853606,-500.0,0.00010999,2]
[335787797,1724491853620,-500.0,0.00010999,2]
[335787798,1724491853629,-500.0,0.00010999,2]
[335787799,1724491853639,-571.98075095,0.00010999,2]
[335787800,1724491853648,-498.86179023,0.00010999,2]
[335787801,1724491853659,-500.0,0.00010999,2]
[335787802,1724491853668,-500.0,0.00010999,2]
[335787803,1724491853678,-500.0,0.00010999,2]
[335787804,1724491853688,-500.0,0.00010999,2]
[335787805,1724491853697,-500.0,0.00010999,2]
[335787806,1724491853707,-500.0,0.00010999,2]
[335787807,1724491853717,-500.0,0.00010999,2]
[335787808,1724491853726,-410.90106014,0.00010999,2]
[335787809,1724491853736,-500.0,0.00010999,2]
[335787810,1724491853745,-500.0,0.00010999,2]
[335787811,1724491853755,-500.0,0.00010999,2]
[335787812,1724491853764,-500.0,0.00010999,2]
[335787813,1724491853774,-524.30292415,0.00010999,2]
[335787814,1724491853784,-567.46452968,0.00010999,2]
[335787815,1724491853795,-500.0,0.00010999,2]
[335787816,1724491853804,-500.0,0.00010999,2]
[335787817,1724491853813,-500.0,0.00010999,2]
[335787818,1724491853823,-507.58612051,0.00010999,2]
[335787819,1724491853833,-500.0,0.00010999,2]
[335787820,1724491853842,-500.0,0.00010999,2]
[335787821,1724491853852,-500.0,0.00010999,2]
[335787822,1724491853862,-500.0,0.00010999,2]
[335787823,1724491853871,-234.678356,0.00010999,2]
[335787824,1724491853880,-512.86023755,0.00010999,2]
[335787825,1724491853889,-500.0,0.00010999,2]
[335787826,1724491853899,-500.0,0.00010999,2]
[335787827,1724491853908,-228.81054906,0.00010999,2]
[335787828,1724491853918,-513.10450432,0.00010999,2]
[335787829,1724491853928,-500.0,0.00010999,2]
[335787830,1724491853938,-513.86248064,0.00010999,2]
[335787831,1724491853947,-500.0,0.00010999,2]
[335787832,1724491853957,-500.0,0.00010999,2]
[335787833,1724491853967,-551.02672121,0.00010999,2]
[335787834,1724491853977,-500.0,0.00010999,2]
[335787835,1724491853987,-522.91033754,0.00010999,2]
[335787836,1724491853996,-500.0,0.00010999,2]
[335787837,1724491854006,-500.0,0.00010999,2]
[335787838,1724491854015,-500.0,0.00010999,2]
[335787839,1724491854028,-500.0,0.00010999,2]
[335787840,1724491854038,-500.0,0.00010999,2]
[335787841,1724491854047,-500.0,0.00010999,2]
[335787842,1724491854057,-506.26696941,0.00010999,2]
[335787843,1724491854067,-500.0,0.00010999,2]
[335787844,1724491854076,-523.9100832,0.00010999,2]
[335787845,1724491854085,-500.0,0.00010999,2]
[335787846,1724491854095,-500.0,0.00010999,2]
[335787847,1724491854105,-500.0,0.00010999,2]
[335787848,1724491854114,-529.18380691,0.00010999,2]
[335787849,1724491854124,-500.0,0.00010999,2]
[335787850,1724491854133,-500.0,0.00010999,2]
[335787851,1724491854142,-500.0,0.00010999,2]
[335787852,1724491854152,-500.0,0.00010999,2]
[335787853,1724491854161,-500.0,0.00010999,2]
[335787854,1724491854171,-500.0,0.00010999,2]
[335787855,1724491854180,-500.0,0.00010999,2]
[335787856,1724491854189,-853.29,0.00010999,2]
[335787857,1724491854198,-853.29,0.00010999,2]
[335787858,1724491854207,-853.29,0.00010999,2]
[335787859,1724491854216,-262.19715509,0.00010999,2]
[335787860,1724491854226,-853.29,0.00010999,2]
[335787861,1724491854235,-853.29,0.00010999,2]
[335787862,1724491854244,-853.29,0.00010999,2]
[335787863,1724491854254,-853.29,0.00010999,2]
[335787864,1724491854263,-853.29,0.00010999,2]
[335787865,1724491854273,-853.52485537,0.00010999,2]
[335787866,1724491854283,-531.34350366,0.00010999,2]
[335787867,1724491854292,-515.71199531,0.00010999,2]
[335787868,1724491854301,-500.0,0.00010999,2]
[335787869,1724491854311,-500.0,0.00010999,2]
[335787870,1724491854320,-500.0,0.00010999,2]
[335787871,1724491854329,-500.0,0.00010999,2]
[335787872,1724491854339,-500.0,0.00010999,2]
[335787873,1724491854348,-459.85393575,0.00010999,2]
[335787874,1724491854358,-500.0,0.00010999,2]
[335787875,1724491854367,-500.0,0.00010999,2]
[335787876,1724491854376,-500.0,0.00010999,2]
[335787877,1724491854385,-500.0,0.00010999,2]
[335787878,1724491854394,-500.0,0.00010999,2]
[335787879,1724491854403,-500.0,0.00010999,2]
[335787880,1724491854412,-500.0,0.00010999,2]
[335787881,1724491854422,-500.0,0.00010999,2]
[335787882,1724491854431,-267.1241182,0.00010999,2]
[335787883,1724491854440,-500.0,0.00010999,2]
[335787884,1724491854451,-347.59115772,0.00010999,2]
[335787885,1724491854460,-517.0956659,0.00010999,2]
[335787886,1724491854469,-500.0,0.00010999,2]
[335787887,1724491854478,-500.0,0.00010999,2]
[335787888,1724491854487,-500.0,0.00010999,2]
[335787889,1724491854497,-500.0,0.00010999,2]
[335787890,1724491854506,-524.36,0.00010999,2]
[335787891,1724491854515,-500.0,0.00010999,2]
[335787892,1724491854525,-515.88,0.00010999,2]
[335787893,1724491854535,-500.0,0.00010999,2]
[335787894,1724491854544,-500.0,0.00010999,2]
[335787895,1724491854553,-500.0,0.00010999,2]
[335787896,1724491854562,-500.0,0.00010999,2]
[335787897,1724491854571,-500.0,0.00010999,2]
[335787898,1724491854581,-500.0,0.00010999,2]
[335787899,1724491854589,-500.0,0.00010999,2]
[335787900,1724491854599,-533.94542173,0.00010999,2]
[335787901,1724491854608,-500.0,0.00010999,2]
[335787902,1724491854621,-500.0,0.00010999,2]
[335787903,1724491854630,-500.0,0.00010999,2]
[335787904,1724491854639,-500.0,0.00010999,2]
[335787905,1724491854648,-500.0,0.00010999,2]
[335787906,1724491854658,-528.36028631,0.00010999,2]
[335787907,1724491854667,-500.0,0.00010999,2]
[335787908,1724491854676,-500.0,0.00010999,2]
[335787909,1724491854685,-500.0,0.00010999,2]
[335787910,1724491854694,-500.0,0.00010999,2]
[335787911,1724491854703,-500.0,0.00010999,2]
[335787912,1724491854712,-500.0,0.00010999,2]
[335787913,1724491854721,-500.0,0.00010999,2]
[335787914,1724491854730,-500.0,0.00010999,2]
[335787915,1724491854739,-500.0,0.00010999,2]
[335787916,1724491854748,-500.0,0.00010999,2]
[335787917,1724491854758,-500.0,0.00010999,2]
[335787918,1724491854767,-500.0,0.00010999,2]
[335787919,1724491854787,-557.36894135,0.00010999,2]
[335787920,1724491854797,-500.0,0.00010999,2]
[335787921,1724491854806,-557.95618105,0.00010999,2]
[335787922,1724491854815,-500.0,0.00010999,2]
[335787923,1724491854824,-865.19,0.00010999,2]
[335787924,1724491854833,-865.19,0.00010999,2]
[335787925,1724491854842,-865.19,0.00010999,2]
[335787926,1724491854851,-865.19,0.00010999,2]
[335787927,1724491854860,-865.19,0.00010999,2]
[335787928,1724491854870,-500.0,0.00010999,2]
[335787929,1724491854879,-500.0,0.00010999,2]
[335787930,1724491854888,-500.0,0.00010999,2]
[335787931,1724491854897,-500.0,0.00010999,2]
[335787932,1724491854907,-500.0,0.00010999,2]
[335787933,1724491854916,-524.68874357,0.00010999,2]
[335787934,1724491854925,-402.75429873,0.00010999,2]
[335787935,1724491854935,-500.0,0.00010999,2]
[335787936,1724491854944,-515.42220776,0.00010999,2]
[335787937,1724491854953,-500.0,0.00010999,2]
[335787938,1724491854963,-500.0,0.00010999,2]
[335787939,1724491854973,-500.0,0.00010999,2]
[335787940,1724491854982,-500.0,0.00010999,2]
[335787941,1724491854991,-500.0,0.00010999,2]
[335787942,1724491855000,-500.0,0.00010999,2]
[335787943,1724491855009,-500.0,0.00010999,2]
[335787944,1724491855019,-536.96,0.00010999,2]
[335787945,1724491855028,-307.26702853,0.00010999,2]
[335787946,1724491855134,-500.0,0.00010999,2]
[335787947,1724491855144,-332.68893436,0.00010999,2]
[335787948,1724491855153,-500.0,0.00010999,2]
[335787949,1724491855163,-500.0,0.00010999,2]
[335787950,1724491855172,-500.0,0.00010999,2]
[335787951,1724491855181,-500.0,0.00010999,2]
[335787952,1724491855191,-618.00642928,0.00010999,2]
[335787953,1724491855200,-500.0,0.00010999,2]
[335787954,1724491855210,-500.0,0.00010999,2]
[335787955,1724491855219,-500.0,0.00010999,2]
[335787956,1724491855228,-500.0,0.00010999,2]
[335787957,1724491855238,-500.0,0.00010999,2]
[335787958,1724491855246,-500.0,0.00010999,2]
[335787959,1724491855256,-585.8047856,0.00010999,2]
[335787960,1724491855266,-517.72728512,0.00010999,2]
[335787961,1724491855276,-511.1301137,0.00010999,2]
[335787962,1724491855286,-500.0,0.00010999,2]
[335787963,1724491855295,-541.5507605,0.00010999,2]
[335787964,1724491855305,-500.0,0.00010999,2]
[335787965,1724491855314,-500.0,0.00010999,2]
[335787966,1724491855324,-500.0,0.00010999,2]
[335787967,1724491855333,-500.0,0.00010999,2]